Cogmind - Beta 14 @@@ ROGUE MODE // 2024.09.04 @ 01:15:08 Player: Trione Result: Destroyed by FW-O8P(R) with Subdweller Laser Performance ------------- Evolutions (0) 0 Regions Visited (2) 400 Robots Destroyed (39) 195 Value Destroyed (899) 899 Prototype IDs (0) 0 Alien Tech Used (0) 0 Bonus (0) 0 TOTAL SCORE: 1494 Bonus ------- None Cogmind --------- Core Integrity 0/250 Matter 290/300 Energy 230/250 System Corruption 5% Temperature Cool (6) Movement Rolling (105) Ox1 Location -10/Subcaves Parts ------- > --- POWER (1) -------- Ion Engine > --- PROPULSION (2) --- Armored Wheel Armored Wheel > --- UTILITY (2) ------ Large Storage Unit Makeshift Light Armor Plating > --- WEAPON (2) ------- Beam Cannon Grenade Launcher > --- INVENTORY (15) --- Light Ion Engine Light Treads Spiked Treads Armored Wheel Armored Wheel High-capacity Matter Pod (200) High-capacity Matter Pod (22) Makeshift Light Armor Plating Shield Generator Beam Cannon Barrage Gun Improved Light Cannon Improved Light Cannon Grenade Launcher Hammer Peak State ------------ > --- POWER ------------ Light Ion Engine > --- PROPULSION ------- Armored Wheel Armored Wheel > --- UTILITY ---------- Large Storage Unit Makeshift Light Armor Plating > --- WEAPON ----------- Beam Cannon Barrage Gun > --- INVENTORY -------- Ion Engine Subdweller Power Source Light Treads Armored Wheel Armored Wheel High-capacity Matter Pod High-capacity Matter Pod Weapon Shielding Shield Generator Beam Cannon Improved Light Cannon Improved Light Cannon Grenade Launcher Grenade Launcher Hammer [Rating: 16] Favorites ----------- Power Light Ion Engine Engine Light Ion Engine Propulsion Armored Wheel Treads Light Treads Leg Aluminum Leg Wheel Armored Wheel Utility Seismic Detector Device Seismic Detector Storage Large Storage Unit Protection Weapon Shielding Weapon Beam Cannon Energy Gun Small Laser Energy Cannon Beam Cannon Ballistic Gun Assault Rifle Ballistic Cannon Light Cannon Launcher Grenade Launcher Impact Weapon Hammer Build | -11 -10 -10 ------- Run | Yrd Mat Sub Slots Evolved . | . . . Power . | . . . Propulsion . | . . . Utility . | . . . Weapon . | . . . Parts Attached 45 | 8 21 16 Power 3 | 1 1 1 Engine 3 | 1 1 1 Core . | . . . Reactor . | . . . Propulsion 12 | 3 8 1 Treads 4 | . 4 . Leg 2 | 2 . . Wheel 6 | 1 4 1 Hover . | . . . Flight . | . . . Utility 8 | 2 2 4 Device 3 | 1 1 1 Storage 2 | 1 1 . Processor . | . . . Hackware . | . . . Protection 3 | . . 3 Artifact . | . . . Weapon 22 | 2 10 10 Energy Gun 1 | 1 . . Energy Cannon 6 | . 3 3 Ballistic Gun 4 | 1 2 1 Ballistic Cannon 2 | . 2 . Launcher 7 | . 3 4 Special Weapon . | . . . Impact Weapon 2 | . . 2 Slashing Weapon . | . . . Piercing Weapon . | . . . Special Melee Weapon . | . . . Unidentified Prototypes . | . . . Parts Lost 2 | . 1 1 Power 1 | . 1 . Propulsion . | . . . Utility 1 | . . 1 Weapon . | . . . Highest Loss Streak 1 | . 1 1 To Critical Strikes . | . . . Average Slot Usage (%) 99 | . 99 100 Engine 13 | . 13 14 Treads 8 | . 10 3 Leg 4 | . 7 . Wheel 14 | . 9 24 Device 10 | . 14 3 Storage 14 | . 14 14 Protection 3 | . . 10 Energy Cannon 16 | . 14 18 Ballistic Cannon 7 | . 11 . Launcher 1 | . . 4 Impact Weapon 1 | . . 4 Peak Build Rating 16 | 7 10 16 Average Rating 9 | 5 8 11 On Entrance 5 | . 7 10 Naked Turns . | . . . Heaviest Build 34 | 12 31 34 Greatest Support 24 | 20 20 24 Greatest Overweight (x) 2 | . 2 2 Average Overweight (x) 1 | . 1 1 Largest Inventory Capacity 15 | 8 15 15 Average Capacity 12 | 7 11 15 Most Carried 15 | 8 15 15 Average Carried 11 | 4 9 14 Final Capacity 15 | 8 15 15 Final Carried 15 | 8 15 15 Class Distribution -------------------- 100% | Mutant Dominant Class ---------------- Mutant | -10/Materials Mutant | -10/Subcaves Resources | -11 -10 -10 ----------- Run | Yrd Mat Sub Matter Collected 1418 | 298 766 354 Remotely . | . . . Salvage Created 1094 | 135 816 143 Parts 72 | 11 52 9 Haulers Intercepted 2 | . 2 . Recyclers Shooed . | . . . Parts Field Recycled . | . . . Retrieved Matter . | . . . Parts Self-Destructed 8 | . . 8 Prevented . | . . . Kills | -11 -10 -10 ------- Run | Yrd Mat Sub Combat Hostiles Destroyed 24 | . 20 4 Cannons 11 | . 11 . AOE 12 | . 8 4 Classes Destroyed 11 | 2 8 1 Worker 1 | . 1 . Builder 3 | . 3 . Tunneler 3 | 2 1 . Hauler 2 | . 2 . Recycler 2 | 1 1 . Mechanic 1 | . 1 . Operator 1 | . 1 . Watcher 2 | . 2 . Swarmer 6 | . 6 . Grunt 14 | . 14 . Subdweller 4 | . . 4 Best Kill Streak 3 | 2 3 2 Combat Bots Only 3 | . 3 2 Max Kills in Single Turn 3 | 1 3 2 Gunslinging . | . . . Exploded 3 | . 3 2 Melee . | . . . Uniques/NPCs Destroyed . | . . . Combat | -11 -10 -10 -------- Run | Yrd Mat Sub Hostile Shots Fired 71 | . 51 20 Missed 20 | . 17 3 Damage Taken 952 | . 517 435 Core 251 | . 129 122 Absorbed by Shields . | . . . Redirected to Shielding 38 | . . 38 Core Remaining (%) 100 | 100 . . Volleys Fired 107 | 6 82 19 Largest 2 | 2 2 2 Hottest 120 | 60 99 120 Shots Fired 180 | 12 144 24 Gun 22 | 12 10 . Cannon 138 | . 129 9 Launcher 20 | . 5 15 Special . | . . . Kinetic 66 | 6 60 . Thermal 94 | 6 79 9 Explosive 20 | . 5 15 Electromagnetic . | . . . Robot Hit Streak 14 | 3 14 3 Robot Miss Streak 4 | 2 4 2 Penetration Max . | . . . Secondary Targets . | . . . Shots Hit Robots 93 | 7 82 4 Core Hits 50 | 4 39 7 Critical Kills 1 | . 1 . Critical Parts Destroyed . | . . . Critical Strikes 2 | . 2 . Meltdown 1 | . 1 . Blast 1 | . 1 . Melee Attacks 19 | . . 19 Impact 19 | . . 19 Slashing . | . . . Piercing . | . . . Sneak Attacks . | . . . Combat Hostiles . | . . . Follow-up Attacks . | . . . Damage Inflicted 2117 | 78 1777 262 Guns 175 | 78 97 . Cannons 1372 | . 1336 36 Explosions 570 | . 344 226 Melee . | . . . Ramming . | . . . Kinetic 715 | 34 681 . Thermal 832 | 44 752 36 Explosive 552 | . 326 226 Electromagnetic 18 | . 18 . Impact . | . . . Slashing . | . . . Piercing . | . . . Highest Corruption 5 | . 5 5 Average Corruption 4 | . 3 5 Corruption Purged . | . . . Corruption Blocked . | . . . Effects 63 | . 31 32 Message Errors 13 | . 7 6 Matter Fused 15 | . 8 7 Heat Flow Errors 7 | . 4 3 Energy Discharges 8 | . 4 4 Parts Rejected 1 | . 1 . Data Loss (minor) 6 | . . 6 Data Loss (major) 3 | . 3 . Misfires 5 | . 2 3 Alerts 3 | . 2 1 Weapon Failures 2 | . . 2 Overload Shots . | . . . Overflow Damage 3 | . 3 . Projectiles 3 | . 3 . Explosions . | . . . Melee . | . . . Knockbacks 10 | . 10 . Impact . | . . . Kinetic 9 | . 9 . Secondary 1 | . 1 . Self-Inflicted Damage 154 | . 97 57 Shots 6 | . 3 3 Rammed . | . . . Targets Rammed . | . . . Kicked . | . . . Crushed . | . . . Highest Temperature 378 | . 378 263 Average Temperature 92 | . 90 113 Received Heat Transfer 273 | . 201 72 Effects 2 | . 2 . Interference 1 | . 1 . Short Circuit 1 | . 1 . Siege Activations . | . . . Robots Corrupted . | . . . Combat Hostiles . | . . . Parts Fried . | . . . Impact Corruptions . | . . . Robots Melted 1 | . 1 . Combat Hostiles 1 | . 1 . Parts Melted 2 | . 1 1 Heat Transferred 1728 | 100 1554 74 Parts Sabotaged . | . . . Parts Stolen . | . . . Parts Stripped . | . . . Power Chain Reactions 1 | . 1 . Alert | -11 -10 -10 ------- Run | Yrd Mat Sub Peak Influence 289 | 15 289 . Initial 9 | . 9 . Average 142 | 5 150 . Maximum Alert Level 1 | . 1 . Low Security (%) 79 | 100 78 . Level 1 20 | . 21 . Level 2 . | . . . Level 3 . | . . . Level 4 . | . . . Level 5 . | . . . High Security . | . . . Max Security . | . . . Squads Dispatched 3 | . 3 . Investigation 2 | . 2 . Extermination . | . . . Reinforcement 1 | . 1 . Assault . | . . . Garrison . | . . . Intercept . | . . . Searches Triggered . | . . . Construction Impeded . | . . . Haulers Reinforced . | . . . Active Scanning Responses . | . . . Cargo Convoy Interrupts . | . . . Stealth | -11 -10 -10 --------- Run | Yrd Mat Sub Distress Signals 5 | . 5 . Communications Jammed . | . . . Distress Signals . | . . . Times Spotted 46 | . 40 6 Peak Tracking Total 4 | . 4 2 Tactical Retreats 1 | . . 1 Traps | -11 -10 -10 ------- Run | Yrd Mat Sub Traps Triggered 6 | . 4 2 Indirectly . | . . . Trap Hack Attempts . | . . . Triggered . | . . . Disarmed . | . . . Reprogrammed . | . . . Reused . | . . . Traps Extracted . | . . . Installed . | . . . Triggered . | . . . Machines | -11 -10 -10 ---------- Run | Yrd Mat Sub Machines Disabled 5 | . 5 . Max in Single Turn 2 | . 2 . Machines Repaired . | . . . Machines Dismantled . | . . . Machines Sabotaged . | . . . Overloaded Fab Kills . | . . . Hacking | -11 -10 -10 --------- Run | Yrd Mat Sub Machines Accessed 9 | . 9 . Terminals 7 | . 7 . Fabricators . | . . . Repair Stations . | . . . Recycling Units 2 | . 2 . Scanalyzers . | . . . Garrison Access . | . . . Total Hacks 20 | . 20 . Successful 14 | . 14 . Failed 6 | . 6 . Catastrophic 1 | . 1 . Database Lockouts . | . . . Manual 17 | . 17 . Terminals 18 | . 18 . Fabricators . | . . . Repair Stations . | . . . Recycling Units 2 | . 2 . Scanalyzers . | . . . Garrison Access . | . . . Terminal Hacks 7 | . 7 . Record 1 | . 1 . Robot Analysis 2 | . 2 . Branch Access Points 1 | . 1 . Terminal Index 1 | . 1 . Unreport Threat 1 | . 1 . Recall Investigation 1 | . 1 . Fabricator Hacks . | . . . Repair Station Hacks . | . . . Recycling Unit Hacks . | . . . Scanalyzer . | . . . Garrison Access Hacks . | . . . Unauthorized Hacks 7 | . 7 . Terminals 5 | . 5 . Assimilate 1 | . 1 . Botnet 3 | . 3 . Operators 1 | . 1 . Fabricators . | . . . Repair Stations . | . . . Recycling Units 2 | . 2 . Tunnel 2 | . 2 . Scanalyzers . | . . . Garrison Access . | . . . Data Cores Recovered . | . . . Used . | . . . Hacking Detections 6 | . 6 . Full Trace Events 1 | . 1 . Feedback Events . | . . . Feedback Blocked . | . . . Robot Schematics Acquired . | . . . Robots Built . | . . . Authchips . | . . . Time . | . . . Total Robot Build Rating . | . . . Part Schematics Acquired . | . . . Parts Built . | . . . Authchips . | . . . Time . | . . . Total Part Build Rating . | . . . Parts Repaired . | . . . Time . | . . . Parts Recycled . | . . . Recycled Matter . | . . . Retrieved Matter . | . . . Retrieved Components . | . . . Parts Scanalyzed . | . . . Part Schematics Acquired . | . . . Parts Damaged . | . . . Bothacking | -11 -10 -10 ------------ Run | Yrd Mat Sub Used RIF Installer . | . . . Robots Hacked . | . . . Non-combat . | . . . Combat . | . . . Robot Hacks Applied . | . . . Relay Couplers Released . | . . . Fabnet Peak Effective % . | . . . Robots Rewired . | . . . Allies Hacked . | . . . Hacks Repelled . | . . . Allies | -11 -10 -10 -------- Run | Yrd Mat Sub Total Allies 1 | . 1 . Largest Group 1 | . 1 . Highest-Rated Group 10 | . 10 . Highest-Rated Ally 10 | . 10 . Total Orders 2 | . 2 . STAY 1 | . 1 . FOLLOW 1 | . 1 . Ally Attacks . | . . . Total Damage . | . . . Kills . | . . . Allies Corrupted . | . . . Allies Melted . | . . . Intel | -11 -10 -10 ------- Run | Yrd Mat Sub Robot Analysis Total 2 | . 2 . Derelict Logs Recovered 1 | . . 1 Drone Launches . | . . . Drone Recoveries . | . . . Exploration | -11 -10 -10 ------------- Run | Yrd Mat Sub Turns Passed 3449 | 119 2152 1178 Spaces Moved 2370 | 71 1342 957 Core 1 | 1 . . Treads 132 | . 125 7 Legs 336 | 64 272 . Wheels 1901 | 6 945 950 Hover . | . . . Flight . | . . . Fastest Speed 50 | 50 95 105 Average Speed 125 | 115 138 109 Slowest Speed 260 | 120 260 240 Overloaded Moves . | . . . Propulsion Burnouts . | . . . Robots Hopped . | . . . Cave-ins Triggered . | . . . Exploration Rate (%) 54 | 4 98 61 Regions Visited 2 Branch Regions 1 Pre-discovered Areas 3 | . 2 1 Known Exits Taken . | . . . Unknown Exits Taken 2 | 1 1 . Scrap Searched 3 | . . 3 Spaces Dug 22 | . 8 14 Terrain Destroyed 122 | . 21 101 Melee 4 | . . 4 Projectile . | . . . AOE 118 | . 21 97 Terrain Rammed . | . . . Walls Destroyed . | . . . Machines Disabled . | . . . Actions | -11 -10 -10 --------- Run | Yrd Mat Sub Total 2621 | 92 1502 1027 Wait 25 | . 20 5 Move 2368 | 70 1341 957 Hop . | . . . Pick Up 32 | 7 20 5 Fast Attach 13 | 8 4 1 Attach 7 | . 6 1 Detach 2 | 1 . 1 Swap 25 | . 11 14 Drop 23 | . 18 5 Fire 107 | 6 82 19 Melee 19 | . . 19 Ram . | . . . Kick . | . . . Crush . | . . . Escape Stasis . | . . . Rewire . | . . . Trap . | . . . Miscellaneous . | . . . Route ------- -11/Scrapyard -10/Materials (discovered 6 exits: [*Mat x3] / *Min x2 / [*Sub]) -10/Subcaves (discovered 2 exits: [*Mat x2]) History --------- Turn | Location | Event 7 | -11/Scrapyard | Discovered new exit (range 16) 120 | -11/Scrapyard | Entered Materials 208 | -10/Materials | Discovered new exit (range 12) 322 | -10/Materials | Build established: Mutant 435 | -10/Materials | Discovered new exit (range 8) 542 | -10/Materials | Discovered new exit (range 15) 663 | -10/Materials | Identified exit to Mines 674 | -10/Materials | Discovered new exit (range 11) 1093 | -10/Materials | Discovered new exit (range 13) 1718 | -10/Materials | Discovered new exit (range 7) 2125 | -10/Materials | Core integrity fell below 50% 2272 | -10/Materials | Entered Subcaves 2389 | -10/Subcaves | Learned location of Storage (-7) 2694 | -10/Subcaves | Discovered new exit (range 5) 2941 | -10/Subcaves | Core integrity fell below 20% 3094 | -10/Subcaves | Shifting Twisted Machinery released Barrage Gun 3100 | -10/Subcaves | Shifting Twisted Machinery released Mak. Light Armor Plating 3195 | -10/Subcaves | Discovered new exit (range 8) 3446 | -10/Subcaves | Ambushed by Subdwellers from Twisted Machinery 3450 | -10/Subcaves | Destroyed by FW-O8P(R) with Subdweller Laser Last Messages --------------- 03235_ Acquired 53 matter. 03235_ Searching scrap... 03235_ Found Mak. Light Armor Plating. 03235_ Found 50 Matter. 03236_ Acquired 50 matter. 03240_ Dropped Sub. Power Source. 03240_ Acquired Mak. Light Armor Plating. 03254_ Searching scrap... 03254_ Found Spk. Treads. 03254_ Found Battle Cannon. 03254_ Found 60 Matter. 03255_ Acquired 60 matter. 03266_ System corrupted: Heat flow error (+298). 03273_ Dropped Weapon Shielding. 03273_ Acquired Spk. Treads. 03339_ System corrupted: Energy discharge (-95). 03356_ System corrupted: Energy discharge (-85). 03395_ BD ADZEURUQNMM19LCZ=D1H 03434_ ZURHSZDN3U ASTKRDQ